[Event "Early-Titled-Tuesday-Blitz-February-20-2024"]
[Site "Chess.com"]
[Date "2024.02.20"]
[Round "2"]
[White "AvitalBor"]
[Black "nicolasbatista3"]
[Result "1-0"]
[WhiteElo "2750"]
[BlackElo "2419"]
[TimeControl "180+1"]
[EndTime "8:15:58 PST"]
[Termination "AvitalBor won by checkmate"]

1. a3 {[%clk 0:03:00.9]} 1... d5 {[%clk 0:02:59.5]} 2. d4 {[%clk 0:02:59.9]}
2... c5 {[%clk 0:02:59.7]} 3. dxc5 {[%clk 0:02:59.5]} 3... a5 {[%clk 0:02:59.9]}
4. c4 {[%clk 0:02:58.4]} 4... e6 {[%clk 0:02:59.1]} 5. cxd5 {[%clk 0:02:55.6]}
5... exd5 {[%clk 0:02:59.3]} 6. Nc3 {[%clk 0:02:55.8]} 6... Be6 {[%clk
0:02:57.4]} 7. e4 {[%clk 0:02:51.3]} 7... d4 {[%clk 0:02:52.7]} 8. Nb5 {[%clk
0:02:42.8]} 8... Bxc5 {[%clk 0:02:48.5]} 9. Bf4 {[%clk 0:02:42.8]} 9... Na6
{[%clk 0:02:43.3]} 10. Nf3 {[%clk 0:02:39]} 10... Nf6 {[%clk 0:02:31.3]} 11.
Nbxd4 {[%clk 0:02:28.1]} 11... O-O {[%clk 0:02:14]} 12. Nxe6 {[%clk 0:02:25.5]}
12... fxe6 {[%clk 0:01:55.2]} 13. Bd3 {[%clk 0:02:11.7]} 13... Nxe4 {[%clk
0:01:47.9]} 14. Bxe4 {[%clk 0:02:08.3]} 14... Rxf4 {[%clk 0:01:48.1]} 15. Bxb7
{[%clk 0:02:08]} 15... Bb6 {[%clk 0:01:16.6]} 16. Qxd8+ {[%clk 0:02:01.3]} 16...
Rxd8 {[%clk 0:01:15.1]} 17. Bxa6 {[%clk 0:02:01.5]} 17... g5 {[%clk 0:01:14.5]}
18. h3 {[%clk 0:01:50.4]} 18... h5 {[%clk 0:01:14]} 19. Rd1 {[%clk 0:01:46.1]}
19... Rdf8 {[%clk 0:01:13.1]} 20. Rd6 {[%clk 0:01:30.6]} 20... Bc5 {[%clk
0:01:11.5]} 21. Rxe6 {[%clk 0:01:30.1]} 21... g4 {[%clk 0:01:11.7]} 22. hxg4
{[%clk 0:01:30]} 22... hxg4 {[%clk 0:01:12.6]} 23. Bc4 {[%clk 0:01:09.1]} 23...
Kg7 {[%clk 0:01:07.3]} 24. Ne5 {[%clk 0:01:08.2]} 24... Bxf2+ {[%clk 0:01:03.7]}
25. Ke2 {[%clk 0:01:08.2]} 25... Re4+ {[%clk 0:01:02.3]} 26. Kd3 {[%clk
0:01:08.4]} 26... Re3+ {[%clk 0:01:00.8]} 27. Kc2 {[%clk 0:01:08.1]} 27... Rf5
{[%clk 0:00:44.4]} 28. Rg6+ {[%clk 0:00:52.8]} 28... Kf8 {[%clk 0:00:44.4]} 29.
Rh8+ {[%clk 0:00:53.7]} 29... Ke7 {[%clk 0:00:44.5]} 30. Re6# {[%clk 0:00:54.6]}
1-0

[Event "Early-Titled-Tuesday-Blitz-February-20-2024"]
[Site "Chess.com"]
[Date "2024.02.20"]
[Round "2"]
[White "MightyGMpretender"]
[Black "ChessRespected"]
[Result "1-0"]
[WhiteElo "2873"]
[BlackElo "2587"]
[TimeControl "180+1"]
[EndTime "8:15:59 PST"]
[Termination "MightyGMpretender won on time"]

1. e4 {[%clk 0:03:00.9]} 1... e5 {[%clk 0:02:59.7]} 2. Nf3 {[%clk 0:03:01.1]}
2... Nc6 {[%clk 0:02:59.3]} 3. Bc4 {[%clk 0:03:01.7]} 3... Bc5 {[%clk
0:02:58.6]} 4. d3 {[%clk 0:03:02.2]} 4... Nf6 {[%clk 0:02:58.3]} 5. Nc3 {[%clk
0:03:02.9]} 5... d6 {[%clk 0:02:58.1]} 6. h3 {[%clk 0:03:03.3]} 6... Na5 {[%clk
0:02:49.6]} 7. Bb3 {[%clk 0:02:45.2]} 7... Nxb3 {[%clk 0:02:48.9]} 8. axb3
{[%clk 0:02:44.9]} 8... a6 {[%clk 0:02:46.2]} 9. O-O {[%clk 0:02:44.9]} 9... O-O
{[%clk 0:02:42.1]} 10. Bg5 {[%clk 0:02:41.4]} 10... h6 {[%clk 0:02:41.6]} 11.
Bh4 {[%clk 0:02:33.5]} 11... c6 {[%clk 0:02:41.1]} 12. Kh1 {[%clk 0:02:31.6]}
12... Kh7 {[%clk 0:02:24]} 13. d4 {[%clk 0:02:21.2]} 13... exd4 {[%clk
0:02:22.9]} 14. Nxd4 {[%clk 0:02:21.9]} 14... Re8 {[%clk 0:02:16.1]} 15. f4
{[%clk 0:02:19.6]} 15... Kg8 {[%clk 0:02:03.3]} 16. Nf3 {[%clk 0:02:16.6]} 16...
g5 {[%clk 0:01:53.9]} 17. fxg5 {[%clk 0:02:15.9]} 17... Nxe4 {[%clk 0:01:54.2]}
18. gxh6 {[%clk 0:02:00.9]} 18... f6 {[%clk 0:01:45.7]} 19. Nd2 {[%clk
0:01:30.3]} 19... Nxd2 {[%clk 0:01:26.8]} 20. Qxd2 {[%clk 0:01:24.9]} 20... Be3
{[%clk 0:01:07.5]} 21. Qd3 {[%clk 0:01:23.6]} 21... Qd7 {[%clk 0:00:34]} 22.
Qg6+ {[%clk 0:01:21.3]} 1-0

[Event "Early-Titled-Tuesday-Blitz-February-20-2024"]
[Site "Chess.com"]
[Date "2024.02.20"]
[Round "2"]
[White "RantomOpening"]
[Black "TimAina"]
[Result "0-1"]
[WhiteElo "2548"]
[BlackElo "2779"]
[TimeControl "180+1"]
[EndTime "8:15:59 PST"]
[Termination "TimAina won by resignation"]

1. c4 {[%clk 0:02:59]} 1... c5 {[%clk 0:03:00]} 2. Nf3 {[%clk 0:02:59.5]} 2...
Nf6 {[%clk 0:03:00.5]} 3. Nc3 {[%clk 0:02:59.8]} 3... e6 {[%clk 0:03:00.6]} 4.
e3 {[%clk 0:03:00.2]} 4... d5 {[%clk 0:02:57.6]} 5. cxd5 {[%clk 0:03:01.1]} 5...
exd5 {[%clk 0:02:57.7]} 6. Bb5+ {[%clk 0:03:01.4]} 6... Bd7 {[%clk 0:02:55.9]}
7. Bxd7+ {[%clk 0:03:01.2]} 7... Nbxd7 {[%clk 0:02:55.2]} 8. d3 {[%clk
0:03:01.5]} 8... Be7 {[%clk 0:02:55.3]} 9. O-O {[%clk 0:03:02]} 9... O-O {[%clk
0:02:55.9]} 10. e4 {[%clk 0:03:02.5]} 10... d4 {[%clk 0:02:55.7]} 11. Ne2 {[%clk
0:03:02.5]} 11... Re8 {[%clk 0:02:43.8]} 12. Ng3 {[%clk 0:03:02.3]} 12... Bf8
{[%clk 0:02:42]} 13. Ne1 {[%clk 0:03:01.2]} 13... b5 {[%clk 0:02:34.1]} 14. f4
{[%clk 0:03:01.1]} 14... c4 {[%clk 0:02:34.6]} 15. e5 {[%clk 0:02:53.4]} 15...
Nd5 {[%clk 0:02:34.7]} 16. dxc4 {[%clk 0:02:52.9]} 16... bxc4 {[%clk 0:02:35.6]}
17. Kh1 {[%clk 0:02:46.8]} 17... d3 {[%clk 0:02:34.8]} 18. b3 {[%clk 0:02:39]}
18... Nc5 {[%clk 0:01:40]} 19. bxc4 {[%clk 0:02:36.1]} 19... Nb6 {[%clk
0:01:22.6]} 20. Be3 {[%clk 0:02:29.3]} 20... Nxc4 {[%clk 0:01:22.8]} 21. Bxc5
{[%clk 0:02:28.8]} 21... d2 {[%clk 0:01:18.3]} 22. Bxf8 {[%clk 0:01:14.5]} 22...
Ne3 {[%clk 0:01:18]} 23. Qe2 {[%clk 0:01:11.6]} 23... Nxf1 {[%clk 0:01:17.1]}
24. Nxf1 {[%clk 0:01:02.2]} 24... dxe1=Q {[%clk 0:01:17]} 25. Rxe1 {[%clk
0:01:03.1]} 25... Rxf8 {[%clk 0:01:16.9]} 26. e6 {[%clk 0:01:02.3]} 26... fxe6
{[%clk 0:01:16.5]} 27. Qxe6+ {[%clk 0:01:03.2]} 27... Kh8 {[%clk 0:01:17.2]} 28.
Qg4 {[%clk 0:00:46.7]} 28... Qd4 {[%clk 0:01:13.4]} 29. Re7 {[%clk 0:00:44.6]}
29... Rxf4 {[%clk 0:01:10.9]} 30. Qe2 {[%clk 0:00:42.8]} 30... Raf8 {[%clk
0:01:08.7]} 31. Ng3 {[%clk 0:00:41.7]} 31... Qa1+ {[%clk 0:01:05.8]} 32. Qe1
{[%clk 0:00:42.1]} 32... Rf1+ {[%clk 0:01:04.4]} 0-1

[Event "Early-Titled-Tuesday-Blitz-February-20-2024"]
[Site "Chess.com"]
[Date "2024.02.20"]
[Round "2"]
[White "Young_Catalan_Player09"]
[Black "NewBornNow"]
[Result "0-1"]
[WhiteElo "2553"]
[BlackElo "2793"]
[TimeControl "180+1"]
[EndTime "8:16:01 PST"]
[Termination "NewBornNow won by resignation"]

1. Nf3 {[%clk 0:03:00.9]} 1... c5 {[%clk 0:02:58.5]} 2. c4 {[%clk 0:02:58.6]}
2... Nc6 {[%clk 0:02:57.4]} 3. Nc3 {[%clk 0:02:58.6]} 3... g6 {[%clk 0:02:56.3]}
4. d4 {[%clk 0:02:58.9]} 4... cxd4 {[%clk 0:02:55.8]} 5. Nxd4 {[%clk 0:02:59.8]}
5... Bg7 {[%clk 0:02:55.9]} 6. Nc2 {[%clk 0:02:59.6]} 6... Nf6 {[%clk
0:02:53.8]} 7. g3 {[%clk 0:02:57.8]} 7... d6 {[%clk 0:02:52.8]} 8. Bg2 {[%clk
0:02:58.1]} 8... h5 {[%clk 0:02:52.6]} 9. h4 {[%clk 0:02:55.5]} 9... O-O {[%clk
0:02:48.9]} 10. O-O {[%clk 0:02:54.6]} 10... Be6 {[%clk 0:02:47.8]} 11. b3
{[%clk 0:02:52.3]} 11... Qd7 {[%clk 0:02:39.7]} 12. Bb2 {[%clk 0:02:49.5]} 12...
Bh3 {[%clk 0:02:39.5]} 13. Ne3 {[%clk 0:02:48.1]} 13... Bxg2 {[%clk 0:02:38.9]}
14. Kxg2 {[%clk 0:02:48.7]} 14... e6 {[%clk 0:02:36.9]} 15. Qd2 {[%clk
0:02:46.7]} 15... Rfd8 {[%clk 0:02:34.7]} 16. Rfd1 {[%clk 0:02:46.1]} 16... a6
{[%clk 0:02:27.8]} 17. Rac1 {[%clk 0:02:43.2]} 17... Rac8 {[%clk 0:02:25.2]} 18.
Na4 {[%clk 0:02:37.9]} 18... Qe7 {[%clk 0:02:19]} 19. Ba3 {[%clk 0:02:33.3]}
19... Ne8 {[%clk 0:02:08.9]} 20. Nb6 {[%clk 0:02:29]} 20... Rb8 {[%clk
0:02:08.7]} 21. Qc2 {[%clk 0:02:23]} 21... Qc7 {[%clk 0:02:02.9]} 22. Na4 {[%clk
0:01:59.1]} 22... Nd4 {[%clk 0:01:47]} 23. Qe4 {[%clk 0:01:55.2]} 23... Qc6
{[%clk 0:01:29.5]} 24. Qxc6 {[%clk 0:01:47.9]} 24... bxc6 {[%clk 0:01:29.4]} 25.
Nc2 {[%clk 0:01:47.1]} 25... Nxe2 {[%clk 0:01:25.7]} 26. Rb1 {[%clk 0:01:42.9]}
26... Nc3 {[%clk 0:01:19.1]} 27. Nxc3 {[%clk 0:01:42.4]} 27... Bxc3 {[%clk
0:01:18.8]} 28. Rd3 {[%clk 0:01:43.3]} 28... Bg7 {[%clk 0:01:10.2]} 29. Rbd1
{[%clk 0:01:40.6]} 29... d5 {[%clk 0:01:07.5]} 30. Nb4 {[%clk 0:01:29.4]} 30...
Rdc8 {[%clk 0:01:07.5]} 31. Nc2 {[%clk 0:01:23.9]} 31... a5 {[%clk 0:01:06.1]}
32. f3 {[%clk 0:01:21.9]} 32... Ra8 {[%clk 0:01:02.4]} 33. Bc5 {[%clk 0:01:21]}
33... a4 {[%clk 0:01:00.8]} 34. b4 {[%clk 0:01:20.8]} 34... dxc4 {[%clk
0:00:59.8]} 35. Rd7 {[%clk 0:01:20.3]} 35... Nf6 {[%clk 0:00:58.4]} 36. Ne3
{[%clk 0:01:18.6]} 36... Nxd7 {[%clk 0:00:57.4]} 37. Rxd7 {[%clk 0:01:17.7]}
37... c3 {[%clk 0:00:56.4]} 38. g4 {[%clk 0:01:10.8]} 38... Rd8 {[%clk
0:00:54.4]} 0-1

[Event "Early-Titled-Tuesday-Blitz-February-20-2024"]
[Site "Chess.com"]
[Date "2024.02.20"]
[Round "2"]
[White "waspofborneo"]
[Black "Magic-Nelwyn"]
[Result "0-1"]
[WhiteElo "2183"]
[BlackElo "2485"]
[TimeControl "180+1"]
[EndTime "8:16:02 PST"]
[Termination "Magic-Nelwyn won by resignation"]

1. e4 {[%clk 0:03:00.9]} 1... d6 {[%clk 0:03:00.9]} 2. d4 {[%clk 0:02:57.7]}
2... g6 {[%clk 0:03:01.8]} 3. Bc4 {[%clk 0:02:50]} 3... Nf6 {[%clk 0:02:54.8]}
4. Nc3 {[%clk 0:02:32.3]} 4... Bg7 {[%clk 0:02:45.5]} 5. Nf3 {[%clk 0:02:32.4]}
5... O-O {[%clk 0:02:44.9]} 6. O-O {[%clk 0:02:32.6]} 6... Bg4 {[%clk
0:02:44.7]} 7. h3 {[%clk 0:02:31.2]} 7... Bxf3 {[%clk 0:02:44.7]} 8. Qxf3 {[%clk
0:02:31.8]} 8... Nc6 {[%clk 0:02:45.3]} 9. Be3 {[%clk 0:02:25.9]} 9... e5 {[%clk
0:02:45]} 10. d5 {[%clk 0:01:46.6]} 10... Nd4 {[%clk 0:02:44.5]} 11. Bxd4 {[%clk
0:01:46.7]} 11... exd4 {[%clk 0:02:44.4]} 12. Ne2 {[%clk 0:01:46.4]} 12... Re8
{[%clk 0:02:44.4]} 13. Bd3 {[%clk 0:01:44.4]} 13... Nd7 {[%clk 0:02:33.5]} 14.
Qg3 {[%clk 0:01:39.3]} 14... Nc5 {[%clk 0:02:11.7]} 15. Qg4 {[%clk 0:01:04]}
15... h5 {[%clk 0:01:41.7]} 16. Qf3 {[%clk 0:00:50.6]} 16... Qe7 {[%clk
0:01:27]} 17. Rfe1 {[%clk 0:00:42.8]} 17... Nxe4 {[%clk 0:01:07.9]} 18. Nxd4
{[%clk 0:00:39.1]} 18... Nd2 {[%clk 0:01:04.8]} 19. Qf4 {[%clk 0:00:26.4]} 19...
Qxe1+ {[%clk 0:00:59.8]} 20. Rxe1 {[%clk 0:00:25.9]} 20... Rxe1+ {[%clk
0:01:00.7]} 21. Kh2 {[%clk 0:00:26.5]} 21... Be5 {[%clk 0:01:00.1]} 0-1

[Event "Early-Titled-Tuesday-Blitz-February-20-2024"]
[Site "Chess.com"]
[Date "2024.02.20"]
[Round "2"]
[White "Alexchess1984"]
[Black "Zhigalko_Sergei"]
[Result "1-0"]
[WhiteElo "2631"]
[BlackElo "2927"]
[TimeControl "180+1"]
[EndTime "8:16:07 PST"]
[Termination "Alexchess1984 won on time"]

1. e4 {[%clk 0:03:00.9]} 1... c5 {[%clk 0:02:58.1]} 2. c3 {[%clk 0:03:00.6]}
2... Nf6 {[%clk 0:02:57.9]} 3. e5 {[%clk 0:03:00.8]} 3... Nd5 {[%clk 0:02:57.8]}
4. Bc4 {[%clk 0:03:00.7]} 4... Nb6 {[%clk 0:02:56.2]} 5. Bb3 {[%clk 0:03:00.8]}
5... c4 {[%clk 0:02:54.7]} 6. Bc2 {[%clk 0:03:00.3]} 6... d6 {[%clk 0:02:55.3]}
7. exd6 {[%clk 0:02:59.6]} 7... Qxd6 {[%clk 0:02:56.2]} 8. Nf3 {[%clk
0:02:59.2]} 8... Qe6+ {[%clk 0:02:55.9]} 9. Kf1 {[%clk 0:02:59]} 9... Nc6 {[%clk
0:02:53.9]} 10. Na3 {[%clk 0:02:55.4]} 10... Qd5 {[%clk 0:00:59.4]} 11. Qe2
{[%clk 0:02:24.2]} 11... Bg4 {[%clk 0:00:52.6]} 12. Be4 {[%clk 0:02:20.9]} 12...
Qc5 {[%clk 0:00:41.9]} 13. b4 {[%clk 0:02:12.1]} 13... cxb3 {[%clk 0:00:41.9]}
14. Nb5 {[%clk 0:02:08.6]} 14... Rc8 {[%clk 0:00:31.2]} 15. Ba3 {[%clk
0:01:50.4]} 15... b2 {[%clk 0:00:20.3]} 16. Rb1 {[%clk 0:01:44.5]} 16... Qc4
{[%clk 0:00:05.6]} 17. Rxb2 {[%clk 0:01:03]} 1-0

[Event "Early-Titled-Tuesday-Blitz-February-20-2024"]
[Site "Chess.com"]
[Date "2024.02.20"]
[Round "2"]
[White "KuzubovYuriy"]
[Black "nekotyanof"]
[Result "1-0"]
[WhiteElo "2968"]
[BlackElo "2630"]
[TimeControl "180+1"]
[EndTime "8:16:17 PST"]
[Termination "KuzubovYuriy won by resignation"]

1. d4 {[%clk 0:02:56.8]} 1... Nf6 {[%clk 0:03:00.1]} 2. Nf3 {[%clk 0:02:56.5]}
2... g6 {[%clk 0:03:00.4]} 3. Nbd2 {[%clk 0:02:56.4]} 3... d5 {[%clk 0:03:00.3]}
4. b4 {[%clk 0:02:55.9]} 4... Bg7 {[%clk 0:02:58]} 5. e3 {[%clk 0:02:56.2]} 5...
c6 {[%clk 0:02:58.6]} 6. c4 {[%clk 0:02:56.1]} 6... O-O {[%clk 0:02:53.3]} 7.
Bb2 {[%clk 0:02:56.1]} 7... a5 {[%clk 0:02:47.7]} 8. b5 {[%clk 0:02:55.7]} 8...
dxc4 {[%clk 0:02:40.8]} 9. Bxc4 {[%clk 0:02:55.4]} 9... cxb5 {[%clk 0:02:41]}
10. Bxb5 {[%clk 0:02:55.7]} 10... Bd7 {[%clk 0:02:33.7]} 11. Be2 {[%clk
0:02:44.8]} 11... Nc6 {[%clk 0:02:26.4]} 12. O-O {[%clk 0:02:42.9]} 12... Nd5
{[%clk 0:02:17.2]} 13. Rb1 {[%clk 0:02:39.5]} 13... Qc7 {[%clk 0:02:05.7]} 14.
Ba1 {[%clk 0:02:32.2]} 14... Rfd8 {[%clk 0:02:04.3]} 15. Qb3 {[%clk 0:02:27.2]}
15... Bc8 {[%clk 0:01:38]} 16. Rfc1 {[%clk 0:02:24.3]} 16... a4 {[%clk
0:01:37.6]} 17. Qd1 {[%clk 0:02:20]} 17... a3 {[%clk 0:01:20.8]} 18. Qb3 {[%clk
0:02:00.6]} 18... Qa5 {[%clk 0:01:12]} 19. Nc4 {[%clk 0:01:57.1]} 19... Qa7
{[%clk 0:01:10]} 20. h3 {[%clk 0:01:41.5]} 20... Bf5 {[%clk 0:01:09.5]} 21. Bd3
{[%clk 0:01:38.7]} 21... Bxd3 {[%clk 0:01:07.3]} 22. Qxd3 {[%clk 0:01:38.8]}
22... Ndb4 {[%clk 0:00:39.9]} 23. Qb3 {[%clk 0:01:37.9]} 23... Qa4 {[%clk
0:00:40.4]} 24. Rc3 {[%clk 0:01:20.4]} 24... Qxb3 {[%clk 0:00:40.3]} 25. Rcxb3
{[%clk 0:01:20.1]} 25... Nxa2 {[%clk 0:00:40.5]} 26. Nxa3 {[%clk 0:01:16.1]}
26... Nab4 {[%clk 0:00:16]} 27. Bc3 {[%clk 0:01:12.3]} 27... Ra4 {[%clk
0:00:13.2]} 28. Bxb4 {[%clk 0:01:10.8]} 28... Nxb4 {[%clk 0:00:13.9]} 29. Rxb4
{[%clk 0:01:06.3]} 29... Rxb4 {[%clk 0:00:14.3]} 30. Rxb4 {[%clk 0:01:05.9]} 1-0

[Event "Early-Titled-Tuesday-Blitz-February-20-2024"]
[Site "Chess.com"]
[Date "2024.02.20"]
[Round "2"]
[White "BeautiFullMindChess"]
[Black "ketster"]
[Result "0-1"]
[WhiteElo "2332"]
[BlackElo "2566"]
[TimeControl "180+1"]
[EndTime "8:16:18 PST"]
[Termination "ketster won on time"]

1. e4 {[%clk 0:01:07.7]} 1... c5 {[%clk 0:02:29.7]} 2. Nf3 {[%clk 0:01:05.7]}
2... Nf6 {[%clk 0:02:29.7]} 3. e5 {[%clk 0:01:03.9]} 3... Nd5 {[%clk 0:02:29.7]}
4. Nc3 {[%clk 0:01:01.1]} 4... e6 {[%clk 0:02:29.6]} 5. Bc4 {[%clk 0:00:57]}
5... Nb6 {[%clk 0:02:27.3]} 6. Be2 {[%clk 0:00:46.3]} 6... Nc6 {[%clk
0:02:26.7]} 7. O-O {[%clk 0:00:45]} 7... d5 {[%clk 0:02:22.4]} 8. exd6 {[%clk
0:00:35]} 8... Bxd6 {[%clk 0:02:22.1]} 9. b3 {[%clk 0:00:32.6]} 9... O-O {[%clk
0:02:19.5]} 10. Bb2 {[%clk 0:00:31.5]} 10... e5 {[%clk 0:02:18.3]} 11. Bb5
{[%clk 0:00:29.6]} 11... Nd4 {[%clk 0:02:14.1]} 12. h3 {[%clk 0:00:22.6]} 12...
Bf5 {[%clk 0:02:07.9]} 13. d3 {[%clk 0:00:20.3]} 13... f6 {[%clk 0:02:03.2]} 14.
a4 {[%clk 0:00:18.2]} 14... Kh8 {[%clk 0:01:58.4]} 15. Bc4 {[%clk 0:00:16.2]}
15... Bg6 {[%clk 0:01:43.7]} 16. a5 {[%clk 0:00:12.9]} 16... Nxc4 {[%clk
0:01:42]} 17. bxc4 {[%clk 0:00:10.8]} 17... Bh5 {[%clk 0:01:40.9]} 18. g4 {[%clk
0:00:10.1]} 18... Be8 {[%clk 0:01:35.5]} 19. Nxd4 {[%clk 0:00:09.8]} 19... exd4
{[%clk 0:01:34.4]} 20. Ne4 {[%clk 0:00:08.7]} 20... f5 {[%clk 0:01:32.1]} 21.
gxf5 {[%clk 0:00:05.7]} 21... Rxf5 {[%clk 0:01:30]} 22. Qg4 {[%clk 0:00:06.6]}
22... Rf4 {[%clk 0:01:27.1]} 23. Qg2 {[%clk 0:00:06.1]} 23... Bc6 {[%clk
0:01:26.7]} 24. Rae1 {[%clk 0:00:05]} 24... Qf8 {[%clk 0:01:22.9]} 25. f3 {[%clk
0:00:04.3]} 25... Bc7 {[%clk 0:01:20.9]} 26. Bc1 {[%clk 0:00:03.6]} 26... Rf5
{[%clk 0:01:20.4]} 27. Bd2 {[%clk 0:00:03]} 27... h6 {[%clk 0:01:17.4]} 28. Kh1
{[%clk 0:00:01.6]} 28... Re8 {[%clk 0:01:16.4]} 0-1

[Event "Early-Titled-Tuesday-Blitz-February-20-2024"]
[Site "Chess.com"]
[Date "2024.02.20"]
[Round "2"]
[White "Journey_to_GrandMaster_YT"]
[Black "DarZay"]
[Result "1-0"]
[WhiteElo "2528"]
[BlackElo "2292"]
[TimeControl "180+1"]
[EndTime "8:16:22 PST"]
[Termination "Journey_to_GrandMaster_YT won by resignation"]

1. d4 {[%clk 0:03:00]} 1... d5 {[%clk 0:02:55.1]} 2. c4 {[%clk 0:02:59.2]} 2...
e6 {[%clk 0:02:55.2]} 3. Nc3 {[%clk 0:02:59.5]} 3... Be7 {[%clk 0:02:55.3]} 4.
Qc2 {[%clk 0:02:52.3]} 4... Nf6 {[%clk 0:02:55]} 5. Bg5 {[%clk 0:02:51.9]} 5...
h6 {[%clk 0:02:54.4]} 6. Bh4 {[%clk 0:02:51.9]} 6... O-O {[%clk 0:02:51.9]} 7.
e3 {[%clk 0:02:50.5]} 7... Ne4 {[%clk 0:02:50.4]} 8. Bxe7 {[%clk 0:02:47.6]}
8... Qxe7 {[%clk 0:02:50.3]} 9. cxd5 {[%clk 0:02:45.8]} 9... Nxc3 {[%clk
0:02:50.4]} 10. bxc3 {[%clk 0:02:37.8]} 10... exd5 {[%clk 0:02:50.6]} 11. Nf3
{[%clk 0:02:37.1]} 11... c6 {[%clk 0:02:48.5]} 12. Rb1 {[%clk 0:02:33.5]} 12...
Nd7 {[%clk 0:02:44.8]} 13. c4 {[%clk 0:02:33.2]} 13... Nf6 {[%clk 0:02:40.9]}
14. Bd3 {[%clk 0:02:25]} 14... Ne4 {[%clk 0:02:40.7]} 15. O-O {[%clk 0:02:19.6]}
15... Bf5 {[%clk 0:02:29]} 16. Rb2 {[%clk 0:02:00.5]} 16... b6 {[%clk
0:02:22.8]} 17. Ne5 {[%clk 0:01:56.8]} 17... Rac8 {[%clk 0:02:14.8]} 18. f3
{[%clk 0:01:54.9]} 18... f6 {[%clk 0:02:10.5]} 19. fxe4 {[%clk 0:01:41.7]} 19...
dxe4 {[%clk 0:02:03.1]} 20. Rxf5 {[%clk 0:01:40.9]} 20... exd3 {[%clk
0:02:03.2]} 21. Nxd3 {[%clk 0:01:37.9]} 21... Qxe3+ {[%clk 0:02:02.7]} 22. Rf2
{[%clk 0:01:30.5]} 22... Qxd4 {[%clk 0:02:00.5]} 23. Ne1 {[%clk 0:01:14.6]}
23... Rfe8 {[%clk 0:01:48.4]} 24. Nf3 {[%clk 0:01:13.5]} 24... Qc5 {[%clk
0:01:47.3]} 25. h3 {[%clk 0:01:07.4]} 25... Re6 {[%clk 0:01:33.8]} 26. Qg6
{[%clk 0:00:56.1]} 26... Rce8 {[%clk 0:01:31.7]} 27. Rd2 {[%clk 0:00:51.9]}
27... Qxc4 {[%clk 0:01:27.9]} 28. Rd7 {[%clk 0:00:49]} 28... R6e7 {[%clk
0:01:24.3]} 29. Rxe7 {[%clk 0:00:44.8]} 29... Rxe7 {[%clk 0:01:24.1]} 30. Rd2
{[%clk 0:00:39.6]} 30... Qc5+ {[%clk 0:01:12.8]} 31. Kh2 {[%clk 0:00:37.7]}
31... Rf7 {[%clk 0:01:10.9]} 32. Rd8+ {[%clk 0:00:28.1]} 32... Rf8 {[%clk
0:01:11.3]} 33. Rd7 {[%clk 0:00:27.6]} 1-0

[Event "Early-Titled-Tuesday-Blitz-February-20-2024"]
[Site "Chess.com"]
[Date "2024.02.20"]
[Round "2"]
[White "sewlins"]
[Black "KetiTsatsalashvili"]
[Result "0-1"]
[WhiteElo "2124"]
[BlackElo "2447"]
[TimeControl "180+1"]
[EndTime "8:16:25 PST"]
[Termination "KetiTsatsalashvili won on time"]

1. e4 {[%clk 0:00:57.9]} 1... c5 {[%clk 0:02:58]} 2. Nf3 {[%clk 0:00:58.2]} 2...
d6 {[%clk 0:02:57.1]} 3. d4 {[%clk 0:00:58]} 3... cxd4 {[%clk 0:02:57.4]} 4.
Nxd4 {[%clk 0:00:58.9]} 4... Nf6 {[%clk 0:02:57.9]} 5. Nc3 {[%clk 0:00:59.1]}
5... Nc6 {[%clk 0:02:58.3]} 6. Bg5 {[%clk 0:00:57.7]} 6... e6 {[%clk 0:02:57.5]}
7. Qd2 {[%clk 0:00:38.2]} 7... a6 {[%clk 0:02:56.6]} 8. f3 {[%clk 0:00:38.8]}
8... Be7 {[%clk 0:02:53.9]} 9. O-O-O {[%clk 0:00:39.1]} 9... Qc7 {[%clk
0:02:48.6]} 10. Be2 {[%clk 0:00:39.4]} 10... O-O {[%clk 0:02:46.6]} 11. h4
{[%clk 0:00:39.1]} 11... Rd8 {[%clk 0:02:46.6]} 12. g4 {[%clk 0:00:37]} 12... b5
{[%clk 0:02:44.7]} 13. a3 {[%clk 0:00:31.9]} 13... b4 {[%clk 0:02:31.6]} 14.
axb4 {[%clk 0:00:19.9]} 14... Nxb4 {[%clk 0:02:32.5]} 15. Kb1 {[%clk 0:00:10.1]}
15... Rb8 {[%clk 0:02:29.6]} 16. Be3 {[%clk 0:00:08.3]} 16... d5 {[%clk
0:02:22.4]} 17. g5 {[%clk 0:00:07.5]} 17... Nd7 {[%clk 0:02:22]} 18. exd5 {[%clk
0:00:07.5]} 18... Nxd5 {[%clk 0:02:21.3]} 19. Nxd5 {[%clk 0:00:07.6]} 19... exd5
{[%clk 0:02:21.9]} 20. Bd3 {[%clk 0:00:07.7]} 20... Nc5 {[%clk 0:02:13.2]} 21.
h5 {[%clk 0:00:07.4]} 21... Na4 {[%clk 0:02:11.8]} 22. Nb3 {[%clk 0:00:06.6]}
22... Bb4 {[%clk 0:01:57.5]} 23. Qf2 {[%clk 0:00:05.8]} 23... Nxb2 {[%clk
0:01:53.2]} 24. Kxb2 {[%clk 0:00:05.5]} 24... Bc3+ {[%clk 0:01:42.9]} 25. Ka2
{[%clk 0:00:05]} 25... Qc6 {[%clk 0:01:33.7]} 26. Kb1 {[%clk 0:00:03.9]} 26...
Qa4 {[%clk 0:01:32.5]} 27. Bb6 {[%clk 0:00:02.3]} 27... d4 {[%clk 0:01:20.1]}
28. g6 {[%clk 0:00:01.5]} 28... Rxb6 {[%clk 0:01:17.1]} 29. gxh7+ {[%clk
0:00:01.7]} 29... Kh8 {[%clk 0:01:17]} 0-1